lending/lending_fUSD_20240128
["ID","MTS","AMOUNT","RATE_DAILY","PERIOD"]
[312938966,1706470304370,-500.0,0.00054246,120]
[312938967,1706470304379,-500.0,0.00054246,120]
[312938968,1706470304388,-500.0,0.00054246,120]
[312938969,1706470304397,-859.61,0.00054246,2]
[312938970,1706470304406,-1182.48,0.00054246,120]
[312938971,1706470304415,-500.0,0.00054246,120]
[312938972,1706470304425,-1605.92,0.00054246,120]
[312938973,1706470304434,-500.0,0.00054246,2]
[312938974,1706470304443,-717.72,0.00054246,120]
[312938975,1706470304452,-1132.61,0.00054246,120]
[312938976,1706470304462,-500.0,0.00054246,20]
[312938977,1706470304473,-500.0,0.00054246,15]
[312938978,1706470304483,-500.0,0.00054246,120]
[312938979,1706470304492,-1180.53,0.00054246,2]
[312938980,1706470304501,-574.75,0.00054246,120]
[312938981,1706470304511,-500.0,0.00054246,120]
[312938982,1706470304520,-500.0,0.00054246,120]
[312938983,1706470304530,-500.0,0.00054246,120]
[312938984,1706470304539,-500.0,0.00054246,120]
[312938985,1706470304548,-418.34053449,0.00054246,120]
[312938986,1706470304559,-1240.16,0.00054246,2]
[312938987,1706470304568,-674.38,0.00054246,120]
[312938988,1706470304577,-500.0,0.00054246,120]
[312938989,1706470304586,-734.77,0.00054246,2]
[312938990,1706470304595,-316.56883148,0.00054246,120]
[312938991,1706470304606,-500.0,0.00054246,120]
[312938992,1706470304616,-335.78391807,0.00054246,120]
[312938993,1706470304627,-500.0,0.00054246,120]
[312938994,1706470304636,-500.0,0.00054246,120]
[312938995,1706470304645,-500.0,0.00054246,120]
[312938996,1706470304654,-500.0,0.00054246,120]
[312938997,1706470304664,-500.0,0.00054246,120]
[312938998,1706470304673,-500.0,0.00054246,120]
[312938999,1706470304682,-500.0,0.00054246,120]
[312939000,1706470304691,-500.0,0.00054246,120]
[312939001,1706470304700,-500.0,0.00054246,120]
[312939002,1706470304709,-500.0,0.00054246,120]
[312939003,1706470304719,-1012.49,0.00054246,7]
[312939004,1706470304728,-500.0,0.00054246,120]
[312939005,1706470304737,-500.0,0.00054246,120]
[312939006,1706470304746,-500.0,0.00054246,120]
[312939007,1706470304756,-500.0,0.00054246,120]
[312939008,1706470304765,-500.0,0.00054246,120]
[312939009,1706470304774,-500.0,0.00054246,120]
[312939010,1706470304783,-500.0,0.00054246,120]
[312939011,1706470304793,-1000.0,0.00054246,2]
[312939012,1706470304801,-500.0,0.00054246,120]
[312939013,1706470304810,-500.0,0.00054246,120]
[312939014,1706470304819,-500.0,0.00054246,120]
[312939015,1706470304829,-524.66,0.00054246,120]
[312939016,1706470304837,-942.54,0.00054246,120]
[312939017,1706470304846,-500.0,0.00054246,120]
[312939018,1706470304855,-500.0,0.00054246,120]
[312939019,1706470304864,-500.0,0.00054246,120]
[312939020,1706470304873,-500.0,0.00054246,120]
[312939021,1706470304882,-500.0,0.00054246,120]
[312939022,1706470304891,-500.0,0.00054246,120]
[312939023,1706470304900,-382.94,0.00054246,120]
[312939024,1706470304909,-500.0,0.00054246,120]
[312939025,1706470304919,-513.19,0.00054246,120]
[312939026,1706470304928,-500.0,0.00054246,120]
[312939027,1706470304937,-797.06,0.00054246,2]
[312939028,1706470304946,-1179.11,0.00054246,7]
[312939029,1706470304956,-415.36,0.00054246,120]
[312939030,1706470304965,-593.1726038,0.00054246,120]
[312939031,1706470304976,-259.03920409,0.00054246,120]
[312939032,1706470304986,-500.0,0.00054246,120]
[312939033,1706470304997,-500.0,0.00054246,120]
[312939034,1706470305007,-511.00579622,0.00054246,14]
[312939035,1706470305022,-500.0,0.00054246,120]
[312939036,1706470305031,-500.0,0.00054246,120]
[312939037,1706470305039,-506.17,0.00054246,120]
[312939038,1706470305048,-500.0,0.00054246,120]
[312939039,1706470305058,-537.17,0.00054246,120]
[312939040,1706470305067,-546.99,0.00054246,120]
[312939041,1706470305076,-500.0,0.00054246,120]
[312939042,1706470305085,-500.0,0.00054246,120]
[312939043,1706470305095,-648.43465074,0.00054246,120]
[312939044,1706470305104,-500.0,0.00054246,120]
[312939045,1706470305113,-500.0,0.00054246,120]
[312939046,1706470305122,-500.0,0.00054246,120]
[312939047,1706470305131,-500.0,0.00054246,120]
[312939048,1706470305141,-500.0,0.00054246,120]
[312939049,1706470305150,-500.0,0.00054246,120]
[312939050,1706470305162,-500.0,0.00054246,120]
[312939051,1706470305171,-500.0,0.00054246,120]
[312939052,1706470305180,-500.0,0.00054246,120]
[312939053,1706470305189,-500.02,0.00054246,120]
[312939054,1706470305198,-500.0,0.00054246,120]
[312939055,1706470305207,-627.32537144,0.00054246,120]
[312939056,1706470305216,-500.0,0.00054246,120]
[312939057,1706470305225,-500.0,0.00054246,120]
[312939058,1706470305234,-368.41540905,0.00054246,120]
[312939059,1706470305243,-455.9,0.00054246,120]
[312939060,1706470305252,-1086.47,0.00054246,120]
[312939061,1706470305261,-500.0,0.00054246,120]
[312939062,1706470305270,-452.22142295,0.00054246,120]
[312939063,1706470305279,-500.0,0.00054246,120]
[312939064,1706470305288,-500.0,0.00054246,120]
[312939065,1706470305297,-500.0,0.00054246,120]
[312939066,1706470305306,-500.0,0.00054246,120]
[312939067,1706470305316,-500.0,0.00054246,120]
[312939068,1706470305324,-500.0,0.00054246,120]
[312939069,1706470305333,-500.0,0.00054246,120]
[312939070,1706470305342,-500.0,0.00054246,120]
[312939071,1706470305351,-514.99217595,0.00054246,120]
[312939072,1706470305360,-500.0,0.00054246,120]
[312939073,1706470305370,-500.0,0.00054246,120]
[312939074,1706470305380,-500.0,0.00054246,120]
[312939075,1706470305389,-500.0,0.00054246,120]
[312939076,1706470305399,-500.0,0.00054246,120]
[312939077,1706470305408,-500.0,0.00054246,120]
[312939078,1706470305417,-302.51600145,0.00054246,120]
[312939079,1706470305426,-500.0,0.00054246,120]
[312939080,1706470305436,-1000.0,0.00054246,7]
[312939081,1706470305445,-600.25340194,0.00054246,120]
[312939082,1706470305454,-500.0,0.00054246,120]
[312939083,1706470305463,-500.0,0.00054246,120]
[312939084,1706470305472,-500.0,0.00054246,120]
[312939085,1706470305481,-640.13094822,0.00054246,120]
[312939086,1706470305490,-500.0,0.00054246,120]
[312939087,1706470305499,-440.93208479,0.00054246,120]
[312939088,1706470305508,-500.0,0.00054246,120]
[312939089,1706470305517,-500.0,0.00054246,120]
[312939090,1706470305526,-500.0,0.00054246,120]
[312939091,1706470305536,-500.0,0.00054246,120]
[312939092,1706470305546,-500.0,0.00054246,120]
[312939093,1706470305557,-500.0,0.00054246,120]
[312939094,1706470305566,-500.0,0.00054246,120]
[312939095,1706470305575,-563.12,0.00054246,120]
[312939096,1706470305585,-500.0,0.00054246,120]
[312939097,1706470305594,-958.05,0.00054246,120]
[312939098,1706470305603,-500.0,0.00054246,120]
[312939099,1706470305612,-500.0,0.00054246,120]
[312939100,1706470305621,-866.15,0.00054246,120]
[312939101,1706470305762,-500.0,0.00054246,120]
[312939102,1706470305772,-1000.0,0.00054246,7]
[312939103,1706470305781,-1465.95,0.00054246,120]
[312939104,1706470305791,-500.0,0.00054246,120]
[312939105,1706470305800,-558.8,0.00054246,120]
[312939106,1706470305809,-702.82,0.00054246,120]
[312939107,1706470305819,-500.0,0.00054246,120]
[312939108,1706470305828,-528.63,0.00054246,120]
[312939109,1706470305837,-1050.63,0.00054246,120]
[312939110,1706470305846,-500.0,0.00054246,120]
[312939111,1706470305856,-2515.85,0.00054246,5]
[312939112,1706470305865,-538.33,0.00054246,120]
[312939113,1706470305875,-500.0,0.00054246,120]
[312939114,1706470305884,-518.95,0.00054246,120]
[312939115,1706470305894,-585.24,0.00054246,120]
[312939116,1706470305904,-540.09,0.00054246,120]
[312939117,1706470305914,-500.0,0.00054246,120]
[312939118,1706470305923,-500.0,0.00054246,120]
[312939119,1706470305932,-500.0,0.00054246,120]
[312939120,1706470305941,-500.0,0.00054246,120]
[312939121,1706470305950,-500.0,0.00054246,120]
[312939122,1706470305961,-604.09,0.00054246,120]
[312939123,1706470305970,-500.0,0.00054246,120]
[312939124,1706470305981,-667.98,0.00054246,2]
[312939125,1706470305991,-980.3,0.00054246,120]
[312939126,1706470306001,-1037.01,0.00054246,120]
[312939127,1706470306011,-500.0,0.00054246,120]
[312939128,1706470306024,-935.8,0.00054246,120]
[312939129,1706470306034,-1201.8,0.00054246,120]
[312939130,1706470306044,-387.6634589,0.00054246,120]
[312939131,1706470306054,-618.59125348,0.00054246,120]
[312939132,1706470306063,-649.1,0.00054246,120]
[312939133,1706470306073,-1061.64,0.00054246,120]
[312939134,1706470306082,-500.0,0.00054246,120]
[312939135,1706470306091,-500.0,0.00054246,120]
[312939136,1706470306101,-500.0,0.00054246,120]
[312939137,1706470306110,-687.49,0.00054246,120]
[312939138,1706470306119,-500.0,0.00054246,120]
[312939139,1706470306128,-934.77,0.00054246,120]
[312939140,1706470306138,-710.56,0.00054246,120]
[312939141,1706470306147,-596.07,0.00054246,120]
[312939142,1706470306156,-500.0,0.00054246,120]
[312939143,1706470306165,-257.15,0.00054246,120]
[312939144,1706470306175,-500.0,0.00054246,120]
[312939145,1706470306184,-500.0,0.00054246,120]
[312939146,1706470306194,-735.56,0.00054246,120]
[312939147,1706470306203,-500.0,0.00054246,120]
[312939148,1706470306213,-335.24,0.00054246,120]
[312939149,1706470306222,-500.0,0.00054246,120]
[312939150,1706470306231,-500.0,0.00054246,120]
[312939151,1706470306240,-692.89,0.00054246,120]
[312939152,1706470306250,-500.0,0.00054246,120]
[312939153,1706470306259,-500.0,0.00054246,120]
[312939154,1706470306268,-251.74172878,0.00054246,120]
[312939155,1706470306277,-760.18,0.00054246,120]
[312939156,1706470306286,-500.0,0.00054246,120]
[312939157,1706470306295,-500.0,0.00054246,120]
[312939158,1706470306305,-537.29,0.00054246,120]
[312939159,1706470306314,-500.0,0.00054246,120]
[312939160,1706470306324,-576.08718698,0.00054246,120]
[312939161,1706470306333,-670.03,0.00054246,120]
[312939162,1706470306343,-949.98,0.00054246,120]
[312939163,1706470306352,-500.0,0.00054246,120]
[312939164,1706470306361,-500.0,0.00054246,120]
[312939165,1706470306371,-471.55850604,0.00054246,120]
[312939166,1706470306381,-476.63,0.00054246,120]
[312939167,1706470306390,-500.0,0.00054246,120]
[312939168,1706470306401,-1013.95,0.00054246,120]
[312939169,1706470306410,-550.0,0.00054246,30]
[312939170,1706470306421,-205.99124351,0.00054246,120]
[312939171,1706470306432,-500.0,0.00054246,120]
[312939172,1706470306442,-500.0,0.00054246,120]
[312939173,1706470306454,-500.0,0.00054246,120]
[312939174,1706470306463,-500.0,0.00054246,120]
[312939175,1706470306472,-635.57,0.00054246,120]
[312939176,1706470306483,-500.0,0.00054246,120]
[312939177,1706470306494,-500.0,0.00054246,120]
[312939178,1706470306505,-600.05,0.00054246,120]
[312939179,1706470306515,-354.82596658,0.00054246,120]
[312939180,1706470306526,-607.62760455,0.00054246,120]
[312939181,1706470306536,-500.0,0.00054246,120]
[312939182,1706470306548,-500.0,0.00054246,120]
[312939183,1706470306559,-500.0,0.00054246,120]
[312939184,1706470306568,-500.0,0.00054246,120]
[312939185,1706470306577,-576.89,0.00054246,120]
[312939186,1706470306586,-913.1,0.00054246,120]
[312939187,1706470306595,-500.0,0.00054246,120]
[312939188,1706470306605,-500.0,0.00054246,120]
[312939189,1706470306614,-699.2,0.00054246,120]
[312939190,1706470306625,-500.0,0.00054246,120]
[312939191,1706470306635,-859.35,0.00054246,120]
[312939192,1706470306645,-598.64,0.00054246,120]
[312939193,1706470306655,-500.0,0.00054246,120]
[312939194,1706470306666,-500.0,0.00054246,120]
[312939195,1706470306675,-500.0,0.00054246,120]
[312939196,1706470306684,-500.0,0.00054246,120]
[312939197,1706470306693,-500.0,0.00054246,120]
[312939198,1706470306702,-486.50222471,0.00054246,120]
[312939199,1706470306711,-566.54,0.00054246,120]
[312939200,1706470306721,-500.0,0.00054246,120]
[312939201,1706470306730,-500.0,0.00054246,120]
[312939202,1706470306739,-500.0,0.00054246,120]
[312939203,1706470306748,-500.0,0.00054246,120]
[312939204,1706470306757,-500.0,0.00054246,120]
[312939205,1706470306768,-500.0,0.00054246,120]
[312939206,1706470306778,-500.0,0.00054246,120]
[312939207,1706470306787,-500.0,0.00054246,120]
[312939208,1706470306798,-663.0,0.00054246,120]
[312939209,1706470306807,-524.36,0.00054246,120]
[312939210,1706470306817,-500.0,0.00054246,120]
[312939211,1706470306827,-500.0,0.00054246,120]
[312939212,1706470306837,-500.0,0.00054246,120]
[312939213,1706470306847,-993.17,0.00054246,5]
[312939214,1706470306856,-500.0,0.00054246,120]
[312939215,1706470306866,-500.0,0.00054246,120]
[312939216,1706470306875,-1254.98,0.00054246,7]
[312939217,1706470306884,-1000.0,0.00054246,31]
[312939218,1706470306894,-593.23,0.00054246,120]
[312939219,1706470306903,-500.0,0.00054246,120]
[312939220,1706470306912,-500.0,0.00054246,120]
[312939221,1706470306921,-787.1,0.00054246,120]
[312939222,1706470306931,-500.0,0.00054246,120]
[312939223,1706470306940,-500.0,0.00054246,120]
[312939224,1706470306950,-727.11,0.00054246,120]
[312939225,1706470306959,-1003.11,0.00054246,120]
[312939226,1706470306968,-500.0,0.00054246,120]
[312939227,1706470306978,-500.0,0.00054246,120]
[312939228,1706470306987,-500.0,0.00054246,120]
[312939229,1706470306997,-500.0,0.00054246,120]
[312939230,1706470307006,-500.0,0.00054246,14]
[312939231,1706470307017,-865.33,0.00054246,120]
[312939232,1706470307027,-729.98,0.00054246,120]
[312939233,1706470307038,-500.0,0.00054246,120]
[312939234,1706470307048,-500.0,0.00054246,120]
[312939235,1706470307060,-500.0,0.00054246,120]
[312939236,1706470307070,-571.22,0.00054246,120]
[312939237,1706470307079,-500.0,0.00054246,120]
[312939238,1706470307088,-733.2,0.00054246,120]
[312939239,1706470307098,-829.02,0.00054246,120]
[312939240,1706470307108,-500.0,0.00054246,120]
[312939241,1706470307117,-500.0,0.00054246,120]
[312939242,1706470307127,-500.0,0.00054246,120]
[312939243,1706470307137,-500.0,0.00054246,120]
[312939244,1706470307146,-573.62,0.00054246,120]
[312939245,1706470307156,-500.0,0.00054246,120]
[312939246,1706470307166,-834.44,0.00054246,120]
[312939247,1706470307176,-851.16,0.00054246,120]
[312939248,1706470307185,-1000.0,0.00054246,20]
[312939249,1706470307194,-875.07,0.00054246,120]
[312939250,1706470307205,-500.0,0.00054246,120]
[312939251,1706470307215,-1079.37,0.00054246,120]
[312939252,1706470307227,-1018.07,0.00054246,120]
[312939253,1706470307237,-500.0,0.00054246,120]
[312939254,1706470307249,-995.96,0.00054246,120]
[312939255,1706470307259,-500.0,0.00054246,120]
[312939256,1706470307269,-780.4,0.00054246,120]
[312939257,1706470307278,-500.0,0.00054246,120]
[312939258,1706470307287,-500.0,0.00054246,120]
[312939259,1706470307296,-500.0,0.00054246,120]
[312939260,1706470307305,-500.0,0.00054246,120]
[312939261,1706470307314,-500.0,0.00054246,7]
[312939262,1706470307323,-709.25,0.00054246,120]
[312939263,1706470307332,-500.0,0.00054246,120]
[312939264,1706470307341,-500.0,0.00054246,120]
[312939265,1706470307350,-500.0,0.00054246,120]
[312939266,1706470307360,-500.0,0.00054246,120]
[312939267,1706470307369,-500.0,0.00054246,120]
[312939268,1706470307379,-500.0,0.00054246,120]
[312939269,1706470307388,-537.14,0.00054246,120]
[312939270,1706470307398,-500.0,0.00054246,120]
[312939271,1706470307407,-500.0,0.00054246,120]
[312939272,1706470307418,-500.0,0.00054246,120]
[312939273,1706470307428,-667.21,0.00054246,120]
[312939274,1706470307438,-1254.44,0.00054246,120]
[312939275,1706470307449,-500.0,0.00054246,120]
[312939276,1706470307460,-500.0,0.00054246,120]
[312939277,1706470307469,-500.0,0.00054246,120]
[312939278,1706470307478,-434.41585759,0.00054246,120]
[312939279,1706470307487,-500.0,0.00054246,120]
[312939280,1706470307496,-500.0,0.00054246,120]
[312939281,1706470307505,-500.0,0.00054246,120]
[312939282,1706470307514,-505.73345161,0.00054246,120]
[312939283,1706470307523,-752.97,0.00054246,120]
[312939284,1706470307532,-500.0,0.00054246,120]
[312939285,1706470307542,-521.4,0.00054246,120]
[312939286,1706470307553,-769.32,0.00054246,120]
[312939287,1706470307563,-500.0,0.00054246,120]
[312939288,1706470307572,-500.0,0.00054246,120]
[312939289,1706470307582,-780.39,0.00054246,120]
[312939290,1706470307591,-673.98,0.00054246,120]
[312939291,1706470307600,-500.0,0.00054246,120]
[312939292,1706470307608,-806.83,0.00054246,120]
[312939293,1706470307618,-500.0,0.00054246,120]
[312939294,1706470307631,-655.92,0.00054246,120]
[312939295,1706470307641,-500.0,0.00054246,120]
[312939296,1706470307651,-809.17,0.00054246,120]
[312939297,1706470307660,-500.0,0.00054246,120]
[312939298,1706470307670,-500.0,0.00054246,120]
[312939299,1706470307679,-500.0,0.00054247,30]
[312939300,1706470307689,-152.50530026,0.00054254,60]
[312939301,1706470307698,-157.30336053,0.0005426,60]
[312939302,1706470307707,-158.50191851,0.00054261,60]
[312939303,1706470307717,-201.18589708,0.00054262,60]
[312939304,1706470307727,-919.66051627,0.00054271,60]
[312939305,1706470307736,-153.79459058,0.00054273,60]
[312939306,1706470307745,-919.66051627,0.00054279,60]
[312939307,1706470307755,-500.0,0.00054284,120]
[312939308,1706470307764,-154.39943299,0.00054289,60]
[312939309,1706470307774,-360.32885597,0.00054291,60]
[312939310,1706470307783,-169.81050378,0.00054292,60]
[312939311,1706470307792,-2110.0,0.00054295,15]
[312939312,1706470307802,-153.79459058,0.00054297,60]
[312939313,1706470307811,-157.30336055,0.00054318,60]
[312939314,1706470307820,-1313.94861369,0.0005432,60]
[312939315,1706470307829,-1313.94861369,0.00054325,60]
[312939316,1706470307839,-150.0,0.00054325,30]
[312939317,1706470307848,-201.18589708,0.00054328,60]
[312939318,1706470307857,-161.33670803,0.00054338,60]
[312939319,1706470307867,-150.0,0.00054338,30]
[312939320,1706470307876,-1313.94861369,0.00054347,60]
[312939321,1706470307885,-396.4358558,0.00054348,120]
[312939322,1706470307894,-161.33670803,0.00054357,60]
[312939323,1706470307902,-175.82197617,0.00054366,60]
[312939324,1706470307913,-152.0,0.00054367,9]
[312939325,1706470307922,-152.50530026,0.00054376,60]
[312939326,1706470307932,-167.82497412,0.00054377,60]
[312939327,1706470307942,-17789.20885946,0.00054377,22]
[312939328,1706470307951,-360.32885597,0.0005438,60]
[312939329,1706470307960,-218.13918626,0.00054388,60]
[312939330,1706470307969,-154.39943299,0.00054389,60]
[312939331,1706470307978,-151.44914822,0.0005439,60]
[312939332,1706470307987,-161.33670803,0.00054391,60]
[312939333,1706470307997,-175.82197617,0.00054392,60]
[312939334,1706470308006,-161.33670803,0.00054392,60]
[312939335,1706470308017,-153.79459058,0.00054396,60]
[312939336,1706470308026,-161.33670803,0.00054397,60]
[312939337,1706470308035,-1313.94861369,0.000544,60]
[312939338,1706470308044,-154.39943299,0.00054403,60]
[312939339,1706470308053,-150.0,0.00054404,30]
[312939340,1706470308062,-1313.94861369,0.0005441,60]
[312939341,1706470308071,-360.32885597,0.00054413,60]
[312939342,1706470308081,-154.39943299,0.00054419,60]
[312939343,1706470308091,-175.82197617,0.00054421,60]
[312939344,1706470308100,-150.50894753,0.00054424,60]
[312939345,1706470308109,-360.32885597,0.00054429,60]
[312939346,1706470308118,-154.39943299,0.00054433,60]
[312939347,1706470308128,-175.82197617,0.00054433,60]
[312939348,1706470308137,-175.82197617,0.00054436,60]
[312939349,1706470308146,-489.71573801,0.00054443,60]
[312939350,1706470308155,-155.61324619,0.00054448,60]
[312939351,1706470308164,-155.61324619,0.00054453,60]
[312939352,1706470308174,-360.32885597,0.00054453,60]
[312939353,1706470308184,-360.32885597,0.00054462,60]
[312939354,1706470308193,-5000.0,0.00054463,7]
[312939355,1706470308201,-153.79459058,0.00054463,60]
[312939356,1706470308211,-155.61324619,0.00054464,60]
[312939357,1706470308220,-489.71573801,0.00054474,60]
[312939358,1706470308229,-153.79459058,0.00054474,60]
[312939359,1706470308239,-360.32885597,0.00054479,60]
[312939360,1706470308248,-150.0,0.00054482,30]
[312939361,1706470308258,-1313.94861369,0.00054484,60]
[312939362,1706470308268,-153.60830703,0.00054487,30]
[312939363,1706470308277,-157.65443503,0.0005449,10]
[312939364,1706470308286,-154.39943299,0.0005449,60]
[312939365,1706470308295,-201.18589708,0.00054491,60]
[312939366,1706470308305,-150.0,0.000545,2]
[312939367,1706470308321,-988845.85706701,0.000545,120]
[312939368,1706470309031,-150.0,0.00027791,2]
[312939369,1706470309043,-150.0,0.00027939,2]
[312939370,1706470309054,-151.0,0.00041096,14]
[312939371,1706470309066,-151.0,0.00041096,14]
[312939372,1706470309076,-676.717704,0.00041096,14]
[312939373,1706470309085,-676.717704,0.00041096,14]
[312939374,1706470309098,-151.0,0.00041096,14]
[312939375,1706470309108,-151.0,0.00041096,14]
[312939376,1706470309117,-601.33713465,0.00041096,14]
[312939377,1706470309129,-75.38056935,0.00041096,14]
[312939378,1706470309301,-676.717704,0.00041096,14]
[312939379,1706470309310,-151.0,0.00041096,14]
[312939380,1706470309320,-676.717704,0.00041096,14]
[312939381,1706470309330,-676.717704,0.00042077,14]
[312939382,1706470309339,-500.0,0.00052054,31]
[312939383,1706470309350,-500.0,0.00052328,31]
[312939384,1706470309360,-500.0,0.00053972,31]
[312939385,1706470309371,-922.9,0.00053972,31]
[312939386,1706470309381,-500.0,0.00054246,120]
[312939387,1706470309390,-922.9,0.00054246,120]
[312939388,1706470309399,-11154.14293299,0.000545,120]
[312939389,1706470309409,-295.74054433,0.000545,3]
[312939390,1706470309419,-3969.24110976,0.000545,120]
[312939391,1706470309427,-619.0,0.000545,120]
[312939392,1706470309438,-152.92,0.000545,8]
[312939393,1706470309447,-152.92,0.000545,8]
[312939394,1706470309457,-152.92,0.000545,8]
[312939395,1706470309467,-152.92,0.000545,8]
[312939396,1706470309476,-152.92,0.000545,8]
[312939397,1706470309486,-152.92,0.000545,8]
[312939398,1706470309494,-152.92,0.000545,8]
[312939399,1706470309503,-323.33,0.000545,8]
[312939400,1706470309513,-323.33,0.000545,8]
[312939401,1706470309523,-323.33,0.000545,8]
[312939402,1706470309535,-323.33,0.000545,8]
[312939403,1706470309546,-323.33,0.000545,8]
[312939404,1706470309556,-323.33,0.000545,8]
[312939405,1706470309565,-323.33,0.000545,8]
[312939406,1706470309574,-323.33,0.000545,8]
[312939407,1706470309585,-323.33,0.000545,8]
[312939408,1706470309596,-323.33,0.000545,8]
[312939409,1706470309606,-323.33,0.000545,8]
[312939410,1706470309617,-323.33,0.000545,8]
[312939411,1706470309628,-323.33,0.000545,8]
[312939412,1706470309638,-323.33,0.000545,8]
[312939413,1706470309648,-323.33,0.000545,8]
[312939414,1706470309657,-323.33,0.000545,8]
[312939415,1706470309666,-323.33,0.000545,8]
[312939416,1706470309676,-323.33,0.000545,8]
[312939417,1706470309685,-323.33,0.000545,8]
[312939418,1706470309694,-323.33,0.000545,8]
[312939419,1706470309703,-314.04,0.000545,2]
[312939420,1706470309713,-500.0,0.00054502,120]
[312939421,1706470309723,-162.77789855,0.00054502,60]
[312939422,1706470309732,-157.54379789,0.00054504,60]
[312939423,1706470309741,-175.82197617,0.00054508,60]
[312939424,1706470309751,-153.79459058,0.0005451,60]
[312939425,1706470309760,-157.72167214,0.00054512,60]
[312939426,1706470309769,-158.32544091,0.00054517,60]
[312939427,1706470309779,-500.0,0.0005452,120]
[312939428,1706470309788,-500.0,0.0005452,120]
[312939429,1706470309797,-500.0,0.0005452,120]
[312939430,1706470309806,-563.76,0.0005452,120]
[312939431,1706470309815,-500.0,0.0005452,120]
[312939432,1706470309824,-500.0,0.0005452,120]
[312939433,1706470309835,-500.0,0.0005452,120]
[312939434,1706470309845,-500.0,0.0005452,120]
[312939435,1706470309854,-645.87309855,0.0005452,120]
[312939436,1706470309863,-500.0,0.0005452,120]
[312939437,1706470309872,-859.61,0.0005452,2]
[312939438,1706470309882,-1182.48,0.0005452,120]
[312939439,1706470309891,-507.50460985,0.0005452,120]
[312939440,1706470309900,-1605.92,0.0005452,120]
[312939441,1706470309909,-500.0,0.0005452,2]
[312939442,1706470309918,-717.72,0.0005452,120]
[312939443,1706470309927,-1132.61,0.0005452,120]
[312939444,1706470309937,-500.0,0.0005452,20]
[312939445,1706470309946,-500.0,0.0005452,15]
[312939446,1706470309956,-500.0,0.0005452,120]
[312939447,1706470309965,-1180.53,0.0005452,2]
[312939448,1706470309974,-574.75,0.0005452,120]
[312939449,1706470309983,-500.0,0.0005452,120]
[312939450,1706470309992,-500.0,0.0005452,120]
[312939451,1706470310001,-500.0,0.0005452,120]
[312939452,1706470310012,-1240.16,0.0005452,2]
[312939453,1706470310021,-674.38,0.0005452,120]
[312939454,1706470310031,-500.0,0.0005452,120]
[312939455,1706470310040,-734.77,0.0005452,2]
[312939456,1706470310050,-500.0,0.0005452,120]
[312939457,1706470310061,-500.0,0.0005452,120]
[312939458,1706470310070,-500.0,0.0005452,120]
[312939459,1706470310079,-316.97,0.0005452,120]
[312939460,1706470310090,-223.77864436,0.0005452,120]
[312939461,1706470310099,-500.0,0.0005452,120]
[312939462,1706470310108,-500.0,0.0005452,120]
[312939463,1706470310118,-500.0,0.0005452,120]
[312939464,1706470310127,-500.0,0.0005452,120]
[312939465,1706470310136,-500.0,0.0005452,120]